bitfinex/quotes_BTCUSD_20240719
["timestamp","ask_amount","ask_price","bid_price","bid_amount"]
[1721394799991,0.04,64318.0,64317.0,1.29701263]
[1721394800404,0.054,64318.0,64317.0,1.29701263]
[1721394800623,0.068,64318.0,64317.0,1.16790275]
[1721394800843,0.068,64318.0,64317.0,1.29699598]
[1721394801057,0.054,64318.0,64317.0,1.29699598]
[1721394801304,0.061,64318.0,64317.0,1.29699598]
[1721394801925,0.058,64318.0,64317.0,1.84323672]
[1721394802132,0.04,64318.0,64317.0,1.84323672]
[1721394803474,0.04,64318.0,64317.0,2.15519572]
[1721394803670,0.04,64318.0,64317.0,2.83077861]
[1721394803885,0.04,64318.0,64317.0,2.76116545]
[1721394804168,0.04,64318.0,64317.0,3.03955239]
[1721394804382,0.041,64318.0,64317.0,2.76216545]
[1721394804600,0.041,64318.0,64317.0,2.78516545]
[1721394804827,0.04,64318.0,64317.0,2.89912426]
[1721394805259,0.042,64318.0,64317.0,2.87892103]
[1721394805567,0.042,64318.0,64317.0,2.90112426]
[1721394805568,0.041,64318.0,64317.0,2.90112426]
[1721394805986,0.042,64318.0,64317.0,2.78616545]
[1721394806208,0.042,64318.0,64317.0,2.90212397]
[1721394806452,0.042,64318.0,64317.0,2.78616545]
[1721394806689,0.042,64318.0,64317.0,2.31243496]
[1721394806903,0.042,64318.0,64317.0,2.78612025]
[1721394807340,0.042,64318.0,64317.0,2.87884228]
[1721394808096,0.042,64318.0,64317.0,2.78612025]
[1721394808293,0.042,64318.0,64317.0,2.87882312]
[1721394808897,0.042,64318.0,64317.0,3.18978212]
[1721394809108,0.00083,64323.0,64322.0,1.710142]
[1721394809344,0.00083,64323.0,64322.0,2.26428317]
[1721394809543,0.00083,64323.0,64322.0,2.3439319]
[1721394809892,0.00083,64323.0,64322.0,2.14537051]
[1721394810025,0.00083,64323.0,64322.0,2.27442378]
[1721394810201,0.00083,64323.0,64322.0,2.32075074]
[1721394810413,0.00083,64323.0,64322.0,2.49732364]
[1721394810648,0.00183,64323.0,64322.0,2.49832364]
[1721394810820,0.00283,64323.0,64322.0,2.50632364]
[1721394811243,0.00283,64323.0,64322.0,2.55264223]
[1721394811448,0.00083,64323.0,64322.0,2.54364223]
[1721394811902,0.00183,64323.0,64322.0,2.55764223]
[1721394812731,0.00183,64323.0,64322.0,2.38227051]
[1721394812936,0.00183,64323.0,64322.0,2.55763895]
[1721394813139,0.00083,64323.0,64322.0,2.55763787]
[1721394813353,0.00083,64323.0,64322.0,2.54363787]
[1721394813562,0.00083,64323.0,64322.0,2.55763787]
[1721394813764,0.00083,64323.0,64322.0,2.52532263]
[1721394813966,0.00083,64323.0,64322.0,2.54393046]
[1721394814369,0.00083,64323.0,64322.0,2.54393071]
[1721394814575,0.00083,64323.0,64322.0,2.23299563]
[1721394815996,0.00083,64323.0,64322.0,2.23299585]
[1721394816206,0.00083,64323.0,64322.0,2.08533551]
[1721394816412,0.00083,64323.0,64322.0,2.23299552]
[1721394816609,0.00083,64323.0,64322.0,1.59316052]
[1721394816970,0.00083,64323.0,64322.0,1.50985261]
[1721394818155,0.00083,64323.0,64322.0,1.80678761]
[1721394818779,0.00083,64323.0,64322.0,1.79278761]
[1721394819363,0.00083,64323.0,64322.0,1.93289256]
[1721394819567,0.00083,64323.0,64322.0,2.28543654]
[1721394819770,0.00183,64323.0,64322.0,1.98750154]
[1721394819975,0.00183,64323.0,64322.0,1.97450154]
[1721394819976,0.00083,64323.0,64322.0,1.97450154]
[1721394820402,0.00183,64323.0,64322.0,1.98750154]
[1721394820882,0.00183,64323.0,64322.0,1.96889256]
[1721394821084,0.00183,64323.0,64322.0,1.98750154]
[1721394821283,0.00183,64323.0,64322.0,2.37561133]
[1721394821528,0.00183,64323.0,64322.0,2.35700235]
[1721394821846,0.00083,64323.0,64322.0,2.34400235]
[1721394822268,0.00183,64323.0,64322.0,2.35800235]
[1721394822895,0.00283,64323.0,64322.0,2.37100235]
[1721394823119,0.00283,64323.0,64322.0,2.41728365]
[1721394823322,0.00183,64323.0,64322.0,2.40427975]
[1721394823523,0.00183,64323.0,64322.0,4.07109266]
[1721394823875,0.00283,64323.0,64322.0,3.77415766]
[1721394824073,0.00283,64323.0,64322.0,3.72788026]
[1721394824447,0.0829,64347.0,64346.0,0.466228]
[1721394824672,0.0829,64347.0,64346.0,1.087866]
[1721394824900,0.0829,64347.0,64346.0,1.09790155]
[1721394826993,0.0829,64347.0,64346.0,1.22692744]
[1721394827358,0.0839,64347.0,64346.0,1.22692744]
[1721394828704,0.0839,64347.0,64346.0,1.09790155]
[1721394828923,0.0839,64347.0,64346.0,1.22693157]
[1721394831971,0.0839,64347.0,64346.0,1.22693144]
[1721394834684,0.001,64347.0,64346.0,1.22693144]
[1721394835141,0.001,64347.0,64346.0,1.22693101]
[1721394835806,0.0804,64347.0,64346.0,1.22693101]
[1721394836400,0.0804,64347.0,64346.0,0.01003555]
[1721394836401,0.1441,64347.0,64346.0,0.01003555]
[1721394836602,0.1441,64347.0,64346.0,0.16544455]
[1721394836779,0.18975897,64347.0,64346.0,0.155409]
[1721394836984,0.18975897,64347.0,64346.0,0.16569533]
[1721394838089,0.1441,64347.0,64346.0,0.16569533]
[1721394838291,0.18956716,64347.0,64346.0,0.16569533]
[1721394840145,0.18956716,64347.0,64346.0,0.01028633]
[1721394840608,0.18956716,64347.0,64344.0,0.155414]
[1721394840861,0.18956716,64347.0,64346.0,0.01029215]
[1721394841068,0.18956339,64347.0,64345.0,0.01029529]
[1721394841287,0.1441,64347.0,64346.0,0.01029215]
[1721394841507,0.1441,64347.0,64344.0,0.155414]
[1721394841935,0.1441,64347.0,64345.0,0.01029529]
[1721394842159,0.04546366,64346.0,64345.0,0.01029529]
[1721394842434,0.1441,64347.0,64345.0,0.01029529]
[1721394842666,0.04543815,64346.0,64345.0,0.01029529]
[1721394842881,0.1441,64347.0,64345.0,0.01029529]
[1721394843363,0.1431,64347.0,64345.0,0.01029529]
[1721394843835,0.1441,64347.0,64345.0,0.01029529]
[1721394844044,0.04539988,64346.0,64345.0,0.01029529]
[1721394846432,0.04539988,64346.0,64345.0,0.47653129]
[1721394846642,0.1431,64347.0,64345.0,0.47653129]
[1721394846643,0.1431,64347.0,64346.0,0.155409]
[1721394846807,0.0794,64347.0,64346.0,0.28445309]
[1721394847025,0.0794,64347.0,64346.0,0.29474881]
[1721394847247,0.0794,64347.0,64346.0,0.6086759]
[1721394847451,0.00083,64351.0,64350.0,0.4662]
[1721394847658,0.00083,64351.0,64350.0,0.91632441]
[1721394848297,0.04627691,64351.0,64350.0,0.78729055]
[1721394848765,0.05327691,64351.0,64350.0,0.78829055]
[1721394849500,0.05327691,64351.0,64350.0,0.47749055]
[1721394849501,0.05328191,64351.0,64350.0,0.47749055]
[1721394850178,0.00783,64351.0,64350.0,0.47749055]
[1721394850417,0.04632463,64351.0,64350.0,0.47649055]
[1721394850635,0.05232463,64351.0,64350.0,0.16669055]
[1721394851621,0.05232463,64351.0,64350.0,0.47749055]
[1721394852084,0.05232463,64351.0,64350.0,0.16669055]
[1721394853390,0.05233528,64351.0,64350.0,0.16669055]
[1721394854014,0.05233528,64351.0,64350.0,0.17599646]
[1721394854422,0.05233528,64351.0,64350.0,0.48679646]
[1721394854636,0.05233528,64351.0,64350.0,0.92663365]
[1721394855072,0.00683,64351.0,64350.0,0.92663365]
[1721394855497,0.05230403,64351.0,64350.0,0.92663365]
[1721394856610,0.00683,64351.0,64350.0,1.23742586]
[1721394859604,0.00683,64351.0,64350.0,1.23742686]
[1721394859834,0.00683,64351.0,64350.0,1.10839646]
[1721394860062,0.00683,64351.0,64350.0,1.23742751]
[1721394864542,0.05223964,64351.0,64350.0,1.23742751]
[1721394866011,0.05223964,64351.0,64350.0,1.23742912]
[1721394866012,0.00683,64351.0,64350.0,1.23742912]
[1721394866220,0.00683,64351.0,64350.0,1.22812321]
[1721394866481,0.00683,64351.0,64350.0,1.22812155]
[1721394869250,0.00683,64351.0,64350.0,1.22811569]
[1721394873929,0.00683,64351.0,64350.0,1.23714025]
[1721394875503,0.00683,64351.0,64350.0,1.22811994]
[1721394877840,0.05230137,64351.0,64350.0,1.22811994]
[1721394878656,0.05231548,64351.0,64350.0,1.22812379]
[1721394879305,0.00683,64351.0,64350.0,1.22812379]
[1721394880347,0.0522941,64351.0,64350.0,1.22812379]
[1721394880988,0.00683,64351.0,64350.0,1.22812379]
[1721394881629,0.05227574,64351.0,64350.0,1.22812379]
[1721394881889,0.05228028,64351.0,64350.0,1.22812087]
[1721394884633,0.06728028,64351.0,64350.0,1.22812087]
[1721394884847,0.02183,64351.0,64350.0,1.09909055]
[1721394885049,0.0672486,64351.0,64350.0,1.22812366]
[1721394888037,0.06725513,64351.0,64350.0,1.22812366]
[1721394888249,0.06725513,64351.0,64350.0,0.91732366]
[1721394888464,0.20925513,64351.0,64350.0,0.14032366]
[1721394888677,0.155413,64345.0,64339.0,0.155426]
[1721394888886,0.155413,64345.0,64340.0,0.155423]
[1721394888887,0.0891,64342.0,64340.0,0.155423]
[1721394889094,0.04542513,64341.0,64340.0,0.155423]
[1721394889760,0.04542513,64341.0,64340.0,0.466271]
[1721394890379,0.04548587,64343.0,64341.0,0.15542]
[1721394890603,0.142,64344.0,64341.0,0.15542]
[1721394890604,0.04547905,64342.0,64341.0,0.15542]
[1721394890844,0.04547905,64342.0,64340.0,0.311848]
[1721394891063,0.142,64344.0,64340.0,0.311848]
[1721394891064,0.142,64344.0,64342.0,0.155419]
[1721394891268,0.04547872,64343.0,64342.0,0.155419]
[1721394892108,0.04547872,64343.0,64340.0,0.001]
[1721394892331,0.857707,64341.0,64340.0,0.001]
[1721394892555,0.155433,64336.0,64335.0,0.4737]
[1721394892772,0.27741172,64336.0,64335.0,0.4737]
[1721394893444,0.12197872,64336.0,64335.0,0.4737]
[1721394894085,0.0765,64336.0,64335.0,0.4737]
[1721394894307,0.12211656,64336.0,64335.0,0.4737]
[1721394894551,0.155436,64335.0,64329.0,0.15545]
[1721394894772,0.20105932,64334.0,64328.0,0.155452]
[1721394894992,0.04562032,64333.0,64329.0,0.15545]
[1721394896052,0.0789,64332.0,64324.0,0.310925]
[1721394896265,0.0789,64332.0,64323.0,0.000913]
[1721394896266,0.155452,64329.0,64323.0,0.000913]
[1721394896694,0.04558208,64328.0,64323.0,0.156378]
[1721394896899,0.20103508,64328.0,64323.0,0.156378]
[1721394897117,0.0757,64327.0,64323.0,0.000913]
[1721394897328,0.0629,64325.0,64323.0,0.000913]
[1721394897535,0.0757,64327.0,64323.0,0.000913]
[1721394897745,0.0757,64331.0,64330.0,0.155447]
[1721394898167,0.0757,64331.0,64329.0,0.15545]
[1721394898398,0.0757,64331.0,64330.0,0.155448]
[1721394899456,0.0757,64331.0,64323.0,0.000913]
[1721394899666,0.0758,64336.0,64332.0,0.155441]
[1721394899907,0.04553543,64335.0,64332.0,0.155441]
[1721394900342,0.0758,64336.0,64332.0,0.155441]
[1721394900560,0.04553563,64335.0,64332.0,0.155441]
[1721394900768,0.04553563,64335.0,64326.0,0.310913]
[1721394900947,0.04553563,64335.0,64325.0,0.310918]
[1721394901378,0.007,64331.0,64329.0,0.15545]
[1721394901623,0.007,64331.0,64329.0,0.155449]
[1721394901840,0.007,64331.0,64330.0,0.155448]
[1721394902054,0.167436,64335.0,64330.0,0.155448]
[1721394902336,0.04549615,64334.0,64333.0,0.155441]
[1721394902546,0.019,64335.0,64334.0,0.466315]
[1721394902767,0.019,64335.0,64334.0,0.777192]
[1721394902979,0.0758,64336.0,64335.0,0.155436]
[1721394903196,0.0758,64336.0,64335.0,0.77718]
[1721394903837,0.0758,64336.0,64335.0,0.466308]
[1721394904842,0.0858,64336.0,64335.0,0.466308]
[1721394905523,0.0928,64336.0,64335.0,0.467308]
[1721394906493,0.017,64336.0,64335.0,0.77818]
[1721394907436,0.017,64336.0,64335.0,0.78511378]
[1721394915622,0.017,64336.0,64335.0,1.09598578]
[1721394917094,0.017,64336.0,64335.0,1.5212222]
[1721394918158,0.0806,64349.0,64348.0,0.155404]
[1721394918374,0.12615276,64349.0,64348.0,0.155404]
[1721394918587,0.12615254,64349.0,64348.0,0.47211361]
[1721394919039,0.0806,64349.0,64348.0,0.78292261]
[1721394919242,0.0455541,64349.0,64348.0,0.78292261]
[1721394919451,0.01583,64351.0,64348.0,0.78292261]
[1721394919452,0.04555386,64350.0,64349.0,0.310805]
[1721394919662,0.04555386,64350.0,64349.0,0.155402]
[1721394919869,0.04555386,64350.0,64349.0,0.78290948]
[1721394920348,0.04555386,64350.0,64349.0,1.09371448]
[1721394920571,0.01583,64351.0,64350.0,0.4662]
[1721394920779,0.01583,64351.0,64350.0,0.777]
[1721394920993,0.01583,64351.0,64350.0,1.0878]
[1721394921205,0.01583,64351.0,64350.0,1.09369435]
[1721394922494,0.02083,64351.0,64350.0,1.09369435]
[1721394922721,0.02283,64351.0,64350.0,1.09369435]
[1721394923146,0.02083,64351.0,64350.0,1.09369435]
[1721394923979,0.01583,64351.0,64350.0,1.09369435]
[1721394924186,0.01983,64351.0,64350.0,1.09369435]
[1721394924612,0.01583,64351.0,64350.0,1.09369435]
[1721394924826,0.01783,64351.0,64350.0,1.09369435]
[1721394925503,0.01783,64351.0,64350.0,1.09469435]
[1721394925710,0.01583,64351.0,64350.0,1.09469435]
[1721394925920,0.01583,64351.0,64350.0,1.09369435]
[1721394926346,0.01583,64351.0,64350.0,1.09469435]
[1721394927207,0.01783,64351.0,64350.0,1.09469435]
[1721394927629,0.01583,64351.0,64350.0,1.09469435]
[1721394928329,0.01583,64351.0,64350.0,1.09369435]
[1721394928544,0.01583,64351.0,64350.0,1.09469435]
[1721394929202,0.01583,64351.0,64350.0,1.09369435]
[1721394929417,0.01583,64351.0,64350.0,1.09569435]
[1721394931516,0.01583,64351.0,64350.0,1.10058024]
[1721394940704,0.01583,64351.0,64350.0,1.22960315]
[1721394940930,0.01583,64351.0,64350.0,1.10058024]
[1721394941391,0.01583,64351.0,64350.0,1.22960328]
[1721394943815,0.01583,64351.0,64350.0,1.38398427]
[1721394944282,0.01583,64351.0,64350.0,1.25496198]
[1721394944568,0.01583,64351.0,64350.0,1.38398387]
[1721394946985,0.01583,64351.0,64350.0,1.25496198]
[1721394947233,0.01583,64351.0,64350.0,1.38398439]
[1721394950024,0.01583,64351.0,64350.0,1.25496198]
[1721394950237,0.01583,64351.0,64350.0,1.38398413]
[1721394953244,0.01583,64351.0,64350.0,1.383984]
[1721394955540,0.01583,64351.0,64350.0,1.25496198]
[1721394955780,0.15903,64351.0,64350.0,0.91880234]
[1721394956012,0.20446299,64351.0,64350.0,0.14180234]
[1721394956238,0.20446299,64351.0,64350.0,0.16818024]
[1721394956239,0.15903,64351.0,64350.0,0.16818024]
[1721394956448,0.44899395,64351.0,64350.0,0.01278024]
[1721394956660,0.75978895,64351.0,64350.0,0.002]
[1721394957079,0.29359695,64351.0,64350.0,0.002]
[1721394957315,0.29359695,64351.0,64350.0,0.01015298]
[1721394957528,0.20444425,64351.0,64350.0,0.002]
[1721394957737,0.06124425,64351.0,64350.0,0.47635298]
[1721394957949,0.06131967,64351.0,64350.0,0.96953326]
[1721394958126,0.01583,64351.0,64350.0,1.36408624]
[1721394958372,0.01583,64351.0,64350.0,1.51846798]
[1721394958831,0.01583,64351.0,64350.0,1.51946798]
[1721394958832,0.02183,64351.0,64350.0,1.51946798]
[1721394959524,0.01583,64351.0,64350.0,1.44285842]
[1721394960220,0.02983,64351.0,64350.0,1.44285842]
[1721394960465,0.01583,64351.0,64350.0,1.44285842]
[1721394960879,0.01883,64351.0,64350.0,1.44285842]
[1721394961289,0.01583,64351.0,64350.0,1.44285842]
[1721394961917,0.01583,64351.0,64350.0,1.44377142]
[1721394962974,0.01783,64351.0,64350.0,1.44377142]
[1721394963398,0.01783,64351.0,64350.0,1.38027142]
[1721394963918,0.01783,64351.0,64350.0,1.38127142]
[1721394964785,0.01783,64351.0,64350.0,1.38027142]
[1721394965017,0.01783,64351.0,64350.0,1.38027017]
[1721394965237,0.01783,64351.0,64350.0,1.38227017]
[1721394966707,0.01583,64351.0,64350.0,1.38227017]
[1721394967563,0.01583,64351.0,64350.0,1.91024982]
[1721394967777,0.01583,64351.0,64350.0,1.84047017]
[1721394967993,0.01583,64351.0,64350.0,1.71144772]
[1721394968219,0.01583,64351.0,64350.0,1.9102499]
[1721394968466,0.01583,64351.0,64350.0,1.88498576]
[1721394968651,0.01583,64351.0,64350.0,1.88498973]
[1721394969339,0.01583,64351.0,64350.0,1.88698973]
[1721394970082,0.01583,64351.0,64350.0,1.88699603]
[1721394970324,0.01583,64351.0,64350.0,1.84046197]
[1721394970763,0.01583,64351.0,64350.0,1.83846197]
[1721394970969,0.01583,64351.0,64350.0,1.85046005]
[1721394971151,0.01583,64351.0,64350.0,1.92025791]
[1721394971402,0.01583,64351.0,64350.0,1.8504585]
[1721394971608,0.01583,64351.0,64350.0,1.8394585]
[1721394971781,0.01683,64351.0,64350.0,1.8504585]
[1721394972401,0.01683,64351.0,64350.0,1.8394585]
[1721394972637,0.01683,64351.0,64350.0,1.85315505]
[1721394973267,0.01583,64351.0,64350.0,2.26644465]
[1721394973480,0.01583,64351.0,64350.0,1.85215505]
[1721394973666,0.01583,64351.0,64350.0,1.85315505]
[1721394973667,0.01683,64351.0,64350.0,1.85315505]
[1721394973928,0.01583,64351.0,64350.0,1.85215505]
[1721394974139,0.01583,64351.0,64350.0,1.88764127]
[1721394974323,0.01683,64351.0,64350.0,1.85315505]
[1721394974528,0.01683,64351.0,64350.0,1.72414427]
[1721394974731,0.01683,64351.0,64350.0,1.89964116]
[1721394975771,0.01683,64351.0,64350.0,1.85315538]
[1721394977568,0.01683,64351.0,64350.0,1.85315533]
[1721394978027,0.01683,64351.0,64350.0,2.34889492]
[1721394978230,0.01683,64351.0,64350.0,2.46510627]
[1721394978433,0.01683,64351.0,64350.0,2.413554]
[1721394978879,0.01683,64351.0,64350.0,2.32062173]
[1721394979467,0.01683,64351.0,64350.0,2.41354554]
[1721394980665,0.01683,64351.0,64350.0,1.84714427]
[1721394980886,0.01683,64351.0,64350.0,2.84395067]
[1721394981088,0.01683,64351.0,64350.0,2.68270506]
[1721394981522,0.01683,64351.0,64350.0,2.84395121]
[1721394981728,0.01683,64351.0,64350.0,4.00327426]
[1721394981942,0.0787,64369.0,64368.0,1.087495]
[1721394982143,0.0787,64369.0,64368.0,1.21649788]
[1721394982348,0.0787,64369.0,64368.0,1.22724004]
[1721394983010,0.08,64374.0,64372.0,0.310694]
[1721394983246,0.075,64374.0,64373.0,0.76013839]
[1721394983481,0.075,64374.0,64373.0,1.38151639]
[1721394983945,0.075,64374.0,64373.0,1.25251351]
[1721394984175,0.075,64374.0,64373.0,1.38148949]
[1721394984401,0.075,64374.0,64373.0,1.69217725]
[1721394984636,0.084,64374.0,64373.0,1.69317725]
[1721394986159,0.084,64374.0,64373.0,1.78217725]
[1721394986380,0.084,64374.0,64373.0,1.65320251]
[1721394986594,0.084,64374.0,64373.0,1.78217767]
[1721394986806,0.084,64374.0,64373.0,1.78217749]
[1721394987019,0.084,64374.0,64373.0,1.65320251]
[1721394987236,0.084,64374.0,64373.0,1.78217756]
[1721394987957,0.085,64374.0,64373.0,1.78217756]
[1721394990321,0.085,64374.0,64373.0,1.78217709]
[1721394991471,0.01,64374.0,64373.0,1.78217709]
[1721394991892,0.01,64374.0,64373.0,1.84367709]
[1721394992517,0.01,64374.0,64373.0,1.94367709]
[1721394992732,0.009,64374.0,64373.0,2.35706609]
[1721394992946,0.009,64374.0,64373.0,2.36206609]
[1721394993358,0.009,64374.0,64373.0,2.36205137]
[1721394993793,0.0804,64386.0,64385.0,1.087208]
[1721394994234,0.0804,64386.0,64385.0,1.09787746]
[1721394996306,0.0804,64386.0,64385.0,1.10287746]
[1721394996726,0.0804,64386.0,64385.0,1.10021009]
[1721394997143,0.08123,64386.0,64385.0,1.10021009]
[1721394997773,0.08123,64386.0,64385.0,1.10321009]
[1721395008945,0.08123,64386.0,64385.0,1.09521009]
[1721395009168,0.08123,64386.0,64385.0,1.09921009]
[1721395010095,0.08123,64386.0,64385.0,0.47794809]
[1721395010304,0.08123,64386.0,64385.0,0.78857909]
[1721395010517,0.08123,64386.0,64385.0,0.47794809]
[1721395010724,0.08123,64386.0,64385.0,0.78957909]
[1721395011129,0.08123,64386.0,64385.0,0.47794809]
[1721395011346,0.08123,64386.0,64385.0,0.01200209]
[1721395011347,0.18758877,64386.0,64385.0,0.01200209]
[1721395011571,0.077,64384.0,64375.0,0.310676]
[1721395011788,0.089,64376.0,64373.0,0.000913]
[1721395012016,0.077,64374.0,64373.0,0.156257]
[1721395012234,0.12216729,64374.0,64373.0,0.156257]
[1721395012434,0.12216729,64374.0,64373.0,0.16423417]
[1721395012843,0.12216729,64374.0,64373.0,0.47492317]
[1721395014923,0.077,64374.0,64373.0,0.47492317]
[1721395015130,0.12223841,64374.0,64373.0,0.47492317]
[1721395015511,0.12423856,64374.0,64373.0,0.16423417]
[1721395016539,0.12423856,64374.0,64373.0,0.16523417]
[1721395017392,0.12418124,64374.0,64373.0,0.16523417]
[1721395017820,0.079,64374.0,64373.0,0.16523417]
[1721395018030,0.12419811,64374.0,64373.0,0.16523417]
[1721395018686,0.12419811,64374.0,64373.0,0.00989017]
[1721395019589,0.079,64374.0,64373.0,0.00989017]
[1721395020728,0.079,64374.0,64373.0,0.16523417]
[1721395021529,0.079,64374.0,64373.0,0.47592317]
[1721395021733,0.002,64374.0,64373.0,0.78661217]
[1721395021938,0.002,64374.0,64373.0,1.34068291]
[1721395022149,0.002,64374.0,64373.0,1.60565935]
[1721395023394,0.002,64374.0,64373.0,1.60565279]
[1721395023848,0.002,64374.0,64373.0,1.60565322]
[1721395024939,0.0832,64374.0,64373.0,0.00989017]
[1721395025184,0.12833247,64374.0,64373.0,0.00989017]
[1721395026793,0.002,64374.0,64373.0,0.78661217]
[1721395028220,0.002,64374.0,64373.0,0.47592317]
[1721395028425,0.002,64374.0,64373.0,0.16523417]
[1721395028634,0.002,64374.0,64373.0,0.00989017]
[1721395028860,0.1442,64374.0,64373.0,0.00989017]
[1721395029098,0.18938012,64374.0,64373.0,0.00989017]
[1721395029647,0.18938532,64374.0,64373.0,0.00989017]
[1721395030093,0.1442,64374.0,64373.0,0.00989017]
[1721395030287,0.18938532,64374.0,64373.0,0.00989017]
[1721395033025,0.18939737,64374.0,64373.0,0.00989017]
[1721395033846,0.34473937,64374.0,64373.0,0.00989017]
[1721395034704,0.65542337,64374.0,64373.0,0.001913]
[1721395035130,1.27679137,64374.0,64373.0,0.001913]
[1721395035374,1.55885225,64374.0,64373.0,0.001913]
[1721395035640,1.90765611,64374.0,64373.0,0.001913]
[1721395035869,1.93090148,64374.0,64373.0,0.001913]
[1721395036116,1.80380032,64374.0,64373.0,0.000913]
[1721395036351,1.73407217,64374.0,64373.0,0.000913]
[1721395036847,1.62037416,64374.0,64373.0,0.000913]
[1721395037097,1.52924071,64374.0,64373.0,0.000913]
[1721395037323,0.65349097,64374.0,64373.0,0.000913]
[1721395037533,0.66049097,64374.0,64373.0,0.001913]
[1721395037738,0.19446497,64374.0,64373.0,0.001913]
[1721395037962,0.05226497,64374.0,64373.0,0.468946]
[1721395038205,0.04526497,64374.0,64373.0,0.47502085]
[1721395038461,0.0767,64379.0,64375.0,0.155338]
[1721395038689,0.0479774,64378.0,64375.0,0.155338]
[1721395038951,0.2005174,64377.0,64376.0,0.0070571]
[1721395039173,0.1398,64377.0,64373.0,0.002913]
[1721395039382,0.04513982,64376.0,64373.0,0.001913]
[1721395039562,0.04513982,64376.0,64374.0,0.00706352]
[1721395039835,0.1398,64377.0,64374.0,0.00706352]
[1721395039836,0.04513957,64375.0,64374.0,0.00706352]
[1721395040043,0.04513957,64376.0,64374.0,0.00706352]
[1721395040220,0.04513957,64375.0,64374.0,0.16240452]
[1721395040454,0.04513957,64376.0,64374.0,0.16240452]
[1721395040665,0.002794,64375.0,64374.0,0.16240452]
[1721395040867,0.04793357,64375.0,64374.0,0.16240452]
[1721395041078,0.82183657,64375.0,64374.0,0.00806352]
[1721395041300,0.89963657,64375.0,64374.0,0.00806352]
[1721395041514,0.89963657,64375.0,64374.0,0.001]
[1721395042138,0.854497,64375.0,64374.0,0.001]
[1721395042319,0.89961029,64375.0,64374.0,0.001]
[1721395042794,0.96001029,64375.0,64374.0,0.001]
[1721395043006,1.42507103,64375.0,64374.0,0.001]
[1721395043223,0.77671,64374.0,64373.0,0.000913]
[1721395043450,1.42623751,64374.0,64373.0,0.000913]
[1721395043663,1.73692151,64374.0,64373.0,0.000913]
[1721395043880,1.79820535,64374.0,64373.0,0.000913]
[1721395044091,1.84831049,64374.0,64373.0,0.000913]
[1721395044509,1.89476704,64374.0,64373.0,0.000913]
[1721395044934,2.20545104,64374.0,64373.0,0.000913]
[1721395045138,2.24067932,64374.0,64373.0,0.001913]
[1721395045343,2.24134163,64374.0,64373.0,0.001913]
[1721395046433,2.17165392,64374.0,64373.0,0.001913]
[1721395046641,2.23434163,64374.0,64373.0,0.001913]
[1721395047131,2.22934163,64374.0,64373.0,0.000913]
[1721395047369,2.15965392,64374.0,64373.0,0.000913]
[1721395047597,2.15965392,64374.0,64373.0,0.001913]
[1721395047598,2.21609223,64374.0,64373.0,0.001913]
[1721395048047,2.20609223,64374.0,64373.0,0.000913]
[1721395048483,2.63734445,64374.0,64373.0,0.000913]
[1721395048741,2.63734445,64374.0,64373.0,5e-08]
[1721395048742,2.85991593,64374.0,64373.0,5e-08]
[1721395048982,2.75781925,64374.0,64373.0,5e-08]
[1721395049369,2.87389955,64374.0,64373.0,5e-08]
[1721395049600,2.75781925,64374.0,64373.0,5e-08]
[1721395049861,2.75781925,64374.0,64350.0,0.000913]
[1721395049862,0.155397,64351.0,64350.0,0.000913]
[1721395050070,0.58948612,64351.0,64350.0,0.000913]
[1721395050281,0.58948612,64351.0,64350.0,0.00807164]
[1721395050490,0.58948612,64351.0,64350.0,0.000913]
[1721395051328,0.59348612,64351.0,64350.0,0.000913]
[1721395051552,0.005,64351.0,64350.0,0.000913]
[1721395051768,0.005,64351.0,64350.0,0.217213]
[1721395051979,0.005,64351.0,64350.0,0.606913]
[1721395052196,0.005,64351.0,64350.0,0.92490589]
[1721395052437,0.005,64351.0,64350.0,1.23570589]
[1721395052654,0.005,64351.0,64350.0,1.39008763]
[1721395052862,0.005,64351.0,64350.0,1.92990797]
[1721395053065,0.004,64351.0,64350.0,1.92990797]
[1721395053492,0.002794,64369.0,64364.0,0.155364]
[1721395053711,0.04496225,64368.0,64365.0,0.155363]
[1721395053914,0.002794,64367.0,64365.0,0.00714212]
[1721395054131,0.04496225,64366.0,64365.0,0.00714212]
[1721395054339,0.04496225,64366.0,64361.0,0.155371]
[1721395054340,0.34562325,64366.0,64361.0,0.155371]
[1721395054543,0.04775811,64365.0,64362.0,0.15537]
[1721395054807,0.04496411,64364.0,64363.0,0.155368]
[1721395055237,0.0824,64366.0,64363.0,0.155368]
[1721395055384,0.04781403,64365.0,64363.0,0.155368]
[1721395055596,0.04502003,64364.0,64363.0,0.155368]
[1721395055770,0.012,64367.0,64366.0,0.155361]
[1721395056346,0.05708491,64367.0,64366.0,0.155361]
[1721395056524,0.05708491,64367.0,64364.0,0.062]
[1721395056760,0.04508491,64366.0,64364.0,0.062]
[1721395056961,0.002794,64365.0,64363.0,0.155367]
[1721395057164,0.002794,64365.0,64359.0,0.062]
[1721395057320,0.002794,64363.0,64359.0,0.217377]
[1721395057561,0.04510661,64364.0,64359.0,0.217377]
[1721395057562,0.15816,64364.0,64359.0,0.217377]
[1721395057746,0.1428,64362.0,64350.0,0.000913]
[1721395057948,0.155384,64357.0,64351.0,0.155396]
[1721395058111,0.04503837,64356.0,64351.0,0.155396]
[1721395058538,0.453543,64362.0,64355.0,0.155388]
[1721395058735,0.155378,64360.0,64355.0,0.155388]
[1721395058936,0.155384,64357.0,64350.0,0.000913]
[1721395059144,0.04505658,64356.0,64350.0,0.000913]
[1721395059343,0.20044558,64355.0,64350.0,0.156312]
[1721395059545,0.04505658,64354.0,64350.0,0.156312]
[1721395060378,0.04505658,64354.0,64351.0,0.003]
[1721395060582,0.04529513,64353.0,64351.0,0.003]
[1721395060780,0.155386,64356.0,64351.0,0.159397]
[1721395060981,0.1428,64362.0,64354.0,0.15539]
[1721395060982,0.04532434,64355.0,64354.0,0.15539]
[1721395061181,0.0798,64362.0,64359.0,0.155376]
[1721395061182,0.002794,64361.0,64359.0,0.155376]
[1721395061401,0.04532198,64360.0,64359.0,0.155376]